fUSD/lending_fUSD_20240613
["ID","MTS","AMOUNT","RATE_DAILY","PERIOD"]
[329331330,1718251834325,-1441.0,0.000217,5]
[329331331,1718251834336,-2335.72,0.00021865,2]
[329331332,1718251834355,-726.79,0.00021915,2]
[329331333,1718251834370,-250.0,0.00021918,2]
[329331334,1718251834381,-150.0,0.00021918,2]
[329331335,1718251834402,-150.0,0.00021918,2]
[329331336,1718251834414,-412.08,0.00021992,2]
[329331338,1718251834433,-2930.7,0.00022813,2]
[329331340,1718251834456,-250.0,0.00022963,2]
[329331342,1718251834469,-363.84,0.00022974,2]
[329331344,1718251834480,-1000.0,0.00022993,2]
[329331346,1718251834503,-1000.0,0.00022998,2]
[329331348,1718251834517,-770.23,0.00023047,2]
[329331349,1718251834545,-340.74,0.00023057,2]
[329331351,1718251834557,-464.1686338,0.00023079,2]
[329331353,1718251834572,-8016.02,0.0002308,2]
[329331354,1718251834584,-4979.77470421,0.00023084,2]
[329331405,1718251841820,-643.65507974,0.00023084,2]
[329331406,1718251842163,-3682.16021605,0.00023084,2]
[329331407,1718251842174,-11978.30003535,0.00023181,2]
[329331408,1718251842266,-924.1338722,0.00023181,2]
[329331409,1718251842581,-887.04395741,0.00023181,2]
[329331410,1718251842594,-3325.0,0.00023181,2]
[329331411,1718251842621,-1960.0,0.00023181,2]
[329331412,1718251842660,-1407.38454086,0.00023181,2]
[329331413,1718251842673,-2041.39395642,0.00023181,2]
[329331414,1718251843227,-1376.74363776,0.00023181,2]
[329331415,1718251843256,-250.0,0.00023213,2]
[329331416,1718251843273,-158.9,0.0002329,2]
[329331417,1718251843290,-713.36,0.0002331,2]
[329331418,1718251843303,-200.0,0.00023408,2]
[329331419,1718251843314,-158.9,0.00023533,2]
[329331420,1718251843329,-173.97,0.00023549,2]
[329331421,1718251843352,-3676.16,0.00023589,2]
[329331422,1718251843384,-158.9,0.00023775,2]
[329331423,1718251843413,-489.25,0.00023795,2]
[329331425,1718251843429,-454.12,0.00023896,2]
[329331426,1718251843450,-158.9,0.00024018,2]
[329331427,1718251843466,-161.56571544,0.00024084,2]
[329331428,1718251843479,-704.73916216,0.00024092,3]
[329331429,1718251843499,-2434.0,0.000241,2]
[329331430,1718251843517,-315.19205721,0.000241,2]
[329331431,1718251843594,-267.80794279,0.000241,2]
[329331432,1718251843605,-1000.0,0.00024109,2]
[329331433,1718251843620,-484.57704821,0.00024109,2]
[329331434,1718251843633,-512.99561162,0.00024109,2]
[329331435,1718251843650,-500.0,0.00024109,2]
[329331436,1718251843666,-500.0,0.00024109,2]
[329331437,1718251843704,-500.0,0.00024109,2]
[329331438,1718251843720,-500.0,0.00024109,2]
[329331439,1718251843732,-500.0,0.00024109,2]
[329331440,1718251843758,-500.0,0.00024109,2]
[329331441,1718251843770,-500.0,0.00024109,2]
[329331442,1718251843784,-500.0,0.00024109,2]
[329331443,1718251843800,-609.29975224,0.00024109,2]
[329331444,1718251843812,-156.44641737,0.00024219,2]
[329331445,1718251843824,-211.6946,0.00024228,2]
[329331446,1718251843837,-166.05779184,0.00024229,2]
[329331447,1718251843864,-326.35336821,0.00024229,2]
[329331448,1718251843877,-180.0,0.0002423,2]
[329331449,1718251843891,-412.08,0.00024255,2]
[329331450,1718251843905,-158.9,0.00024261,2]
[329331451,1718251843917,-156.09806418,0.00024328,10]
[329331452,1718251843934,-21578.63759426,0.00024328,2]
[329331453,1718251843964,-406.24944498,0.00024328,2]
[329331454,1718251844004,-578.06080476,0.00024328,2]
[329331468,1718251845293,-376.52356081,0.00024328,2]
[329331469,1718251845313,-2701.90484104,0.00024328,2]
[329331470,1718251845468,-1599.94471805,0.00024328,2]
[329331471,1718251845485,-2310.70422325,0.00024328,2]
[329331473,1718251845817,-327.97525005,0.00024328,2]
[329331474,1718251845859,-619.93559265,0.00024328,2]
[329331475,1718251846172,-631.04999998,0.00024328,2]
[329331476,1718251846230,-660604.17770769,0.00024328,2]
[329331477,1718251846244,-8186.68844923,0.00024329,2]
[329331478,1718251846255,-19781.93512778,0.00024329,2]
[329331479,1718251846269,-192723.00085375,0.00024329,2]
[329331480,1718251846283,-2057.90124787,0.00024329,2]
[329331495,1718251848061,-2437.47706605,0.00024329,2]
[329331496,1718251848446,-363.93081841,0.00024328,2]
[329331497,1718251848459,-15336.82530059,0.00024329,2]
[329331498,1718251848482,-79371.25129474,0.00024329,2]
[329331499,1718251848495,-299.79059261,0.00024329,2]
[329331500,1718251848515,-180.76997474,0.00024329,2]
[329331501,1718251848549,-270.94,0.00024384,2]
[329331502,1718251848565,-211.17,0.00024384,2]
[329331503,1718251848580,-156.92920761,0.00024412,2]
[329331504,1718251848604,-2693.54,0.00024414,2]
[329331505,1718251848625,-158.9,0.00024504,2]
[329331506,1718251848640,-154.69533692,0.00024648,2]
[329331507,1718251848653,-156.92920761,0.00024753,2]
[329331508,1718251848667,-153.7,0.00025,2]
[329331509,1718251848679,-155.391826,0.00025077,2]
[329331510,1718251848692,-156.44641737,0.00025801,2]
[329331511,1718251848704,-1000.0,0.00025873,2]
[329331512,1718251848715,-1691.57253549,0.00026,2]
[329331513,1718251848727,-166.66666666,0.00026204,2]
[329331514,1718251848739,-412.08,0.00026519,2]
[329331515,1718251848752,-156.92920761,0.00026563,2]
[329331516,1718251848784,-2361.6009,0.00026579,2]
[329331517,1718251848804,-704.73916216,0.0002658,4]
[329331518,1718251848834,-567.52269317,0.0002658,2]
[329331519,1718251848853,-10831.8866801,0.0002658,2]
[329331520,1718251848872,-11050.41926931,0.0002662,2]
[329331521,1718251848899,-35998.8304,0.0002668,2]
[329331522,1718251848920,-597.58581954,0.00026698,2]
[329331523,1718251848933,-4138.7634,0.0002678,2]
[329331524,1718251848949,-3295.8815,0.0002678,2]
[329331525,1718251848964,-37622.69247929,0.0002678,2]
[329331526,1718251849007,-51627.87172071,0.0002678,2]
[329331527,1718251849031,-415.55752037,0.0002678,2]
[329331528,1718251849055,-918.70387967,0.0002678,2]
[329331529,1718251849078,-423.10961844,0.00026822,2]
[329331531,1718251849098,-176.98277657,0.00026865,2]
[329331532,1718251849116,-156.44641737,0.00026876,2]
[329331533,1718251849153,-66664.55438884,0.0002688,2]
[329331534,1718251849261,-953.67,0.0002688,2]
[329331535,1718251853375,-667.21533428,0.00024327,2]
[329331536,1718251853390,-1000.0,0.00024327,2]
[329331537,1718251853409,-2829.34771968,0.00024328,10]
[329331538,1718251853421,-21917.9661554,0.0002688,2]
[329331539,1718251853432,-568.345291,0.0002688,2]
[329331540,1718251853448,-11755.60284918,0.0002688,2]
[329331541,1718251853459,-227.95503093,0.0002688,2]
[329331542,1718251853476,-1534.70295,0.0002688,2]
[329331543,1718251853490,-567.52269317,0.00026949,2]
[329331544,1718251853506,-10831.88668006,0.00026949,2]
[329331545,1718251853535,-430.40584267,0.00026998,2]
[329331546,1718251853551,-500.0,0.00027048,2]
[329331547,1718251853563,-918.70387958,0.00027064,2]
[329331548,1718251853578,-166.05779183,0.00027065,2]
[329331549,1718251853598,-155.98735714,0.00027071,2]
[329331550,1718251853614,-196.1,0.00027143,2]
[329331551,1718251853631,-2693.54,0.00027154,2]
[329331552,1718251853646,-567.52269317,0.00027318,2]
[329331553,1718251853658,-10831.88668006,0.00027318,2]
[329331554,1718251853669,-918.70387958,0.00027347,2]
[329331555,1718251853681,-150.0,0.00027368,2]
[329331556,1718251853691,-500.0,0.00027397,2]
[329331557,1718251853701,-600.06921904,0.00027397,2]
[329331558,1718251853716,-150.88,0.00027397,2]
[329331559,1718251853726,-177.67,0.00027397,2]
[329331560,1718251853738,-177.15,0.00027397,10]
[329331561,1718251853751,-885.77,0.00027397,10]
[329331562,1718251853765,-2494.33139368,0.000274,2]
[329331563,1718251853776,-156.92920761,0.00027402,2]
[329331564,1718251853786,-700.018144,0.00027515,2]
[329331565,1718251853798,-156.44641739,0.0002756,2]
[329331566,1718251853816,-918.70387958,0.00027631,2]
[329331567,1718251853828,-154.458,0.00027638,2]
[329331568,1718251853840,-696.994,0.00027638,2]
[329331569,1718251853857,-709.857,0.00027638,2]
[329331570,1718251853876,-318.75,0.00027638,2]
[329331571,1718251853908,-567.52269317,0.00027687,2]
[329331572,1718251853924,-10831.88668006,0.00027687,2]
[329331573,1718251853944,-162.62,0.0002778,2]
[329331574,1718251853957,-700.018144,0.00027858,2]
[329331575,1718251853977,-1363.25452495,0.000279,2]
[329331576,1718251854024,-527.3426415,0.000279,2]
[329331577,1718251854087,-12042.30416998,0.000279,2]
[329331578,1718251854103,-4051.677995,0.000279,2]
[329331579,1718251854173,-1298.10070513,0.000279,2]
[329331580,1718251854215,-450.89332225,0.000279,2]
[329331581,1718251854229,-272.32466048,0.000279,2]
[329331599,1718251855255,-114132.84374844,0.000279,2]
[329331601,1718251855267,-918.70387958,0.00027915,2]
[329331602,1718251855282,-150.0,0.0002793,2]
[329331604,1718251855296,-161.56571544,0.00027938,2]
[329331606,1718251855325,-286.79053637,0.00028,2]
[329331608,1718251855346,-1204.94218696,0.00028,2]
[329331610,1718251855368,-2000.0,0.00028,2]
[329331613,1718251855413,-200.0,0.00028,2]
[329331615,1718251855430,-300.0,0.00028,2]
[329331617,1718251855449,-567.52269317,0.00028056,2]
[329331619,1718251855465,-10831.88668006,0.00028056,2]
[329331621,1718251855479,-150.0,0.00028081,2]
[329331623,1718251855492,-150.0,0.00028107,2]
[329331626,1718251855525,-150.0,0.00028153,2]
[329331628,1718251855548,-150.0,0.00028156,2]
[329331629,1718251855564,-154.88603374,0.00028159,2]
[329331631,1718251855584,-150.0,0.00028164,2]
[329331633,1718251855600,-150.0,0.00028183,2]
[329331635,1718251855613,-150.0,0.00028193,2]
[329331637,1718251855630,-918.70387958,0.00028198,2]
[329331638,1718251855643,-700.018144,0.00028202,2]
[329331640,1718251855656,-150.88,0.00028203,2]
[329331642,1718251855668,-1500.0,0.00028216,2]
[329331645,1718251855682,-150.0,0.00028268,2]
[329331647,1718251855708,-150.0,0.00028273,2]
[329331650,1718251855742,-200.0,0.0002828,2]
[329331651,1718251855760,-150.0,0.00028324,2]
[329331653,1718251855780,-150.0,0.00028335,2]
[329331655,1718251855792,-150.0,0.00028351,2]
[329331657,1718251855806,-156.92920761,0.00028358,2]
[329331659,1718251855822,-156.92920761,0.00028367,2]
[329331661,1718251855838,-300.0,0.00028411,2]
[329331663,1718251855855,-567.52269317,0.00028424,2]
[329331664,1718251855881,-10831.88668006,0.00028424,2]
[329331667,1718251855896,-918.70387958,0.00028482,2]
[329331668,1718251855922,-1500.0,0.00028492,2]
[329331671,1718251855967,-355.0,0.000285,2]
[329331673,1718251855979,-1000.0,0.000285,2]
[329331674,1718251856003,-300.0,0.00028518,2]
[329331675,1718251856018,-150.0,0.00028518,2]
[329331678,1718251856034,-150.0,0.00028524,2]
[329331680,1718251856052,-156.92920761,0.00028542,2]
[329331682,1718251856080,-700.018144,0.00028546,2]
[329331684,1718251856092,-300.0,0.00028547,2]
[329331686,1718251856108,-150.0,0.00028573,2]
[329331688,1718251856122,-150.0,0.00028574,2]
[329331691,1718251856152,-150.0,0.00028576,2]
[329331693,1718251856172,-150.0,0.00028592,2]
[329331695,1718251856186,-150.0,0.00028595,2]
[329331697,1718251856219,-150.0,0.00028614,2]
[329331700,1718251856234,-156.92920761,0.00028624,2]
[329331703,1718251856280,-150.0,0.00028627,2]
[329331705,1718251856293,-150.0,0.00028628,2]
[329331706,1718251856306,-1500.0,0.00028637,2]
[329331710,1718251856360,-150.0,0.0002864,2]
[329331712,1718251856378,-150.0,0.00028657,2]
[329331715,1718251856396,-150.0,0.00028664,2]
[329331717,1718251856410,-152.0,0.0002869,3]
[329331719,1718251856430,-304.15915553,0.00028694,2]
[329331722,1718251856447,-150.0,0.000287,2]
[329331723,1718251856459,-150.0,0.00028739,2]
[329331725,1718251856475,-150.0,0.00028741,2]
[329331727,1718251856490,-1000.0,0.00028748,2]
[329331729,1718251856502,-150.0,0.00028756,2]
[329331732,1718251856525,-918.70387958,0.00028765,2]
[329331733,1718251856536,-150.0,0.00028776,2]
[329331735,1718251856550,-412.08,0.00028783,2]
[329331737,1718251856562,-150.0,0.00028789,2]
[329331739,1718251856579,-567.52269317,0.00028793,2]
[329331740,1718251856591,-10831.88668006,0.00028793,2]
[329331742,1718251856604,-150.0,0.00028804,2]
[329331744,1718251856615,-300.0,0.00028822,2]
[329331746,1718251856627,-150.0,0.00028842,2]
[329331747,1718251856641,-500.0,0.00028867,2]
[329331750,1718251856664,-150.0,0.00028889,2]
[329331752,1718251856690,-700.018144,0.0002889,2]
[329331754,1718251856706,-1500.0,0.00028891,2]
[329331756,1718251856729,-150.0,0.00028896,2]
[329331758,1718251856746,-300.0,0.00028923,2]
[329331760,1718251856759,-150.0,0.00028925,2]
[329331761,1718251856772,-150.0,0.00028934,2]
[329331763,1718251856786,-1500.0,0.00028945,2]
[329331766,1718251856798,-150.0,0.00028946,2]
[329331767,1718251856809,-150.0,0.00028958,2]
[329331769,1718251856820,-150.0,0.00028969,2]
[329331770,1718251856832,-150.0,0.00028974,2]
[329331773,1718251856857,-150.0,0.00028986,2]
[329331775,1718251856871,-23496.4492266,0.00029,2]
[329331777,1718251856883,-56141.24582405,0.00029,2]
[329331779,1718251856895,-5808.80890393,0.00029,15]
[329331780,1718251856906,-1002.49669343,0.00029,2]
[329331781,1718251856924,-150.88,0.00029009,2]
[329331783,1718251856939,-918.70387958,0.00029049,2]
[329331785,1718251856956,-5000.0,0.0002906,2]
[329331788,1718251856993,-5000.0,0.00029068,2]
[329331790,1718251857005,-150.0,0.00029074,2]
[329331792,1718251857018,-773.0,0.000291,2]
[329331793,1718251857041,-655.0,0.000291,2]
[329331795,1718251857062,-1500.0,0.00029123,2]
[329331798,1718251857084,-150.0,0.00029131,2]
[329331800,1718251857118,-150.0,0.0002916,2]
[329331802,1718251857141,-150.0,0.00029162,2]
[329331804,1718251857166,-567.52269317,0.00029162,15]
[329331806,1718251857209,-10831.88668006,0.00029162,15]
[329331808,1718251857229,-150.0,0.00029164,2]
[329331810,1718251857242,-221.31868786,0.00029165,2]
[329331813,1718251857256,-164.25,0.00029178,2]
[329331815,1718251857268,-526.55,0.00029178,2]
[329331817,1718251857279,-150.0,0.00029178,2]
[329331819,1718251857293,-150.0,0.00029178,2]
[329331821,1718251857307,-300.0,0.00029179,2]
[329331823,1718251857317,-150.0,0.0002918,2]
[329331825,1718251857328,-300.0,0.00029181,2]
[329331827,1718251857339,-150.0,0.00029185,2]
[329331829,1718251857350,-150.0,0.00029188,2]
[329331831,1718251857361,-150.0,0.00029195,2]
[329331832,1718251857373,-300.0,0.00029226,2]
[329331834,1718251857387,-369.0,0.0002924,2]
[329331836,1718251857400,-150.0,0.00029243,2]
[329331838,1718251857413,-150.0,0.00029244,2]
[329331840,1718251857425,-150.0,0.00029244,2]
[329331842,1718251857438,-150.0,0.00029249,2]
[329331844,1718251857449,-1500.0,0.00029252,2]
[329331846,1718251857467,-1500.0,0.00029265,2]
[329331848,1718251857478,-150.0,0.00029267,2]
[329331850,1718251857488,-150.0,0.00029272,2]
[329331853,1718251857505,-150.0,0.00029299,2]
[329331855,1718251857528,-7500.0,0.000293,2]
[329331857,1718251857542,-150.0,0.00029313,2]
[329331859,1718251857555,-300.0,0.00029327,2]
[329331861,1718251857570,-918.70387958,0.00029333,2]
[329331863,1718251857583,-150.0,0.00029345,2]
[329331865,1718251857608,-150.0,0.00029364,2]
[329331867,1718251857619,-176.94064779,0.00029398,4]
[329331868,1718251857632,-773.0,0.000294,2]
[329331870,1718251857645,-655.0,0.000294,2]
[329331872,1718251857656,-29999.028,0.000294,4]
[329331874,1718251857669,-29999.028,0.000294,4]
[329331876,1718251857680,-29999.027,0.000294,4]
[329331878,1718251857692,-29999.028,0.000294,4]
[329331880,1718251857704,-29999.027,0.000294,4]
[329331882,1718251857714,-150.0,0.00029405,2]
[329331884,1718251857725,-150.0,0.00029415,2]
[329331886,1718251857737,-151.0,0.00029423,2]
[329331888,1718251857749,-300.0,0.00029445,2]
[329331890,1718251857762,-300.0,0.00029455,2]
[329331892,1718251857778,-500.0,0.00029462,2]
[329331894,1718251857800,-200.0,0.00029462,2]
[329331896,1718251857819,-150.0,0.00029476,2]
[329331898,1718251857832,-150.0,0.00029482,2]
[329331900,1718251857851,-150.0,0.00029489,2]
[329331902,1718251857875,-500.0,0.00029489,3]
[329331903,1718251857889,-25000.0,0.0002949,2]
[329331904,1718251857906,-1500.0,0.00029497,2]
[329331905,1718251857935,-500.0,0.00029498,3]
[329331906,1718251857962,-150.0,0.00029498,2]
[329331907,1718251857977,-227.76393299,0.000295,3]
[329331908,1718251858003,-1001.626147,0.000295,2]
[329331910,1718251858016,-1584.233338,0.000295,2]
[329331912,1718251858037,-300.0,0.00029506,2]
[329331914,1718251858055,-221.95443291,0.00029516,2]
[329331916,1718251858069,-155.04706833,0.0002953,2]
[329331919,1718251858082,-150.0,0.00029531,2]
[329331921,1718251858096,-567.52269317,0.00029531,15]
[329331931,1718251858290,-10831.88668006,0.00029531,15]
[329331932,1718251858303,-300.0,0.00029537,2]
[329331934,1718251858317,-150.0,0.00029538,2]
[329331936,1718251858331,-300.0,0.00029539,2]
[329331937,1718251858341,-150.0,0.0002954,2]
[329331939,1718251858366,-150.0,0.00029553,2]
[329331941,1718251858382,-150.0,0.00029555,2]
[329331943,1718251858394,-150.0,0.00029561,2]
[329331945,1718251858417,-150.0,0.00029568,2]
[329331948,1718251858446,-150.0,0.00029581,2]
[329331952,1718251858479,-602.0,0.00029599,5]
[329331954,1718251858494,-1502.439221,0.000296,2]
[329331956,1718251858524,-150.0,0.00029607,2]
[329331959,1718251858552,-150.0,0.00029608,2]
[329331962,1718251858571,-150.0,0.00029615,2]
[329331964,1718251858583,-918.70387958,0.00029616,2]
[329331966,1718251858594,-1500.0,0.00029621,2]
[329331968,1718251858604,-300.0,0.00029623,2]
[329331970,1718251858615,-308.36457298,0.00029644,2]
[329331972,1718251858626,-150.0,0.00029646,2]
[329331974,1718251858637,-150.0,0.00029655,2]
[329331976,1718251858648,-150.0,0.00029658,2]
[329331978,1718251858676,-150.0,0.00029681,2]
[329331980,1718251858687,-150.0,0.00029698,2]
[329331982,1718251858698,-150.0,0.00029698,2]
[329331984,1718251858710,-253.45455834,0.00029698,2]
[329331987,1718251858729,-150.0,0.00029698,2]
[329331989,1718251858740,-150.0,0.00029698,2]
[329331991,1718251858752,-150.0,0.00029698,2]
[329331993,1718251858762,-150.0,0.00029698,2]
[329331995,1718251858773,-150.0,0.00029698,2]
[329331997,1718251858786,-200.76412,0.00029698,2]
[329331999,1718251858796,-11673.54696765,0.000297,2]
[329332001,1718251858808,-773.0,0.000297,2]
[329332003,1718251858818,-655.0,0.000297,2]
[329332005,1718251858829,-4738.083,0.000297,4]
[329332007,1718251858839,-4738.083,0.000297,4]
[329332009,1718251858849,-4738.084,0.000297,4]
[329332011,1718251858860,-4738.083,0.000297,4]
[329332013,1718251858870,-4738.083,0.000297,4]
[329332015,1718251858880,-2003.252295,0.000297,2]
[329332017,1718251858891,-150.0,0.00029703,2]
[329332019,1718251858907,-161.74837408,0.00029705,2]
[329332021,1718251858919,-150.0,0.00029711,2]
[329332023,1718251858929,-150.0,0.00029711,2]
[329332025,1718251858939,-150.0,0.00029718,2]
[329332027,1718251858950,-300.0,0.00029732,2]
[329332029,1718251858961,-150.0,0.00029738,2]
[329332031,1718251858972,-300.0,0.00029753,2]
[329332033,1718251858984,-500.0,0.00029759,2]
[329332035,1718251858994,-150.0,0.0002976,2]
[329332037,1718251859005,-150.0,0.00029773,2]
[329332039,1718251859015,-1500.0,0.00029774,2]
[329332041,1718251859025,-300.0,0.00029778,2]
[329332043,1718251859035,-1723.123209,0.0002978,10]
[329332045,1718251859047,-150.0,0.00029795,2]
[329332047,1718251859057,-150.0,0.00029796,2]
[329332049,1718251859068,-2504.065369,0.000298,2]
[329332051,1718251859078,-3505.691516,0.000298,2]
[329332053,1718251859091,-4006.50459,0.000298,30]
[329332055,1718251859101,-1000.0,0.000298,10]
[329332057,1718251859113,-150.0,0.0002981,2]
[329332059,1718251859124,-150.88,0.00029815,2]
[329332061,1718251859136,-1000.0,0.0002982,10]
[329332063,1718251859149,-150.0,0.00029821,2]
[329332065,1718251859159,-150.0,0.00029823,2]
[329332067,1718251859170,-150.0,0.00029825,2]
[329332069,1718251859181,-1000.0,0.0002984,10]
[329332071,1718251859208,-150.0,0.00029843,2]
[329332073,1718251859229,-1000.0,0.0002986,10]
[329332076,1718251859242,-156.90281941,0.00029866,2]
[329332078,1718251859255,-150.0,0.00029867,2]
[329332080,1718251859266,-150.0,0.00029867,2]
[329332082,1718251859285,-150.0,0.00029871,2]
[329332084,1718251859304,-150.0,0.00029879,2]
[329332087,1718251859317,-1000.0,0.0002988,10]
[329332089,1718251859333,-300.0,0.00029886,2]
[329332090,1718251859350,-1008.7012,0.000299,2]
[329332092,1718251859360,-918.70387958,0.000299,2]
[329332094,1718251859371,-567.52269317,0.000299,15]
[329332096,1718251859385,-10831.88668006,0.000299,15]
[329332098,1718251859396,-500.0,0.000299,2]
[329332100,1718251859407,-1000.0,0.000299,10]
[329332102,1718251859417,-153.69603807,0.000299,7]
[329332104,1718251859428,-153.69603807,0.000299,7]
[329332106,1718251859438,-153.69603807,0.000299,7]
[329332108,1718251859448,-153.69603807,0.000299,7]
[329332110,1718251859459,-153.69603807,0.000299,7]
[329332112,1718251859471,-153.69603807,0.000299,7]
[329332113,1718251859482,-153.69603807,0.000299,7]
[329332115,1718251859493,-153.69603807,0.000299,7]
[329332118,1718251859510,-153.69603807,0.000299,7]
[329332120,1718251859529,-153.69603807,0.000299,7]
[329332122,1718251859542,-153.69603807,0.000299,7]
[329332124,1718251859553,-153.69603807,0.000299,7]
[329332126,1718251859571,-153.69603807,0.000299,7]
[329332128,1718251859581,-153.69603807,0.000299,7]
[329332130,1718251859591,-153.69603807,0.000299,7]
[329332133,1718251859602,-153.69603807,0.000299,7]
[329332134,1718251859612,-153.69603807,0.000299,7]
[329332137,1718251859625,-153.69603807,0.000299,7]
[329332139,1718251859635,-154.19,0.000299,7]
[329332140,1718251859645,-584.11994468,0.000299,7]
[329332142,1718251859656,-584.11994468,0.000299,7]
[329332145,1718251859669,-584.11994468,0.000299,7]
[329332147,1718251859680,-584.11994468,0.000299,7]
[329332149,1718251859690,-584.11994468,0.000299,7]
[329332151,1718251859701,-584.11994468,0.000299,7]
[329332153,1718251859713,-584.11994468,0.000299,7]
[329332155,1718251859724,-584.11994468,0.000299,7]
[329332156,1718251859736,-584.11994468,0.000299,7]
[329332158,1718251859746,-584.11994468,0.000299,7]
[329332160,1718251859758,-584.11994468,0.000299,7]
[329332162,1718251859769,-584.11994468,0.000299,7]
[329332164,1718251859780,-584.11994468,0.000299,7]
[329332166,1718251859791,-584.11994468,0.000299,7]
[329332168,1718251859806,-584.11994468,0.000299,7]
[329332170,1718251859817,-584.11994468,0.000299,7]
[329332172,1718251859827,-584.11994468,0.000299,7]
[329332174,1718251859839,-584.11994468,0.000299,7]
[329332176,1718251859850,-584.11994468,0.000299,7]
[329332179,1718251859863,-584.61,0.000299,7]
[329332181,1718251859881,-166.05779183,0.000299,2]
[329332183,1718251859892,-150.0,0.00029913,2]
[329332186,1718251859915,-5000.0,0.00029914,2]
[329332188,1718251859925,-302.0,0.00029918,4]
[329332190,1718251859936,-1000.0,0.0002992,10]
[329332192,1718251859961,-187.29035298,0.00029921,2]
[329332194,1718251859972,-150.0,0.00029923,2]
[329332197,1718251859990,-150.0,0.00029924,2]
[329332198,1718251860021,-1000.0,0.0002994,10]
[329332199,1718251860056,-150.0,0.00029942,2]
[329332200,1718251860068,-150.0,0.00029953,2]
[329332201,1718251860086,-1000.0,0.0002996,10]
[329332202,1718251860097,-150.0,0.00029967,2]
[329332204,1718251860109,-150.0,0.00029976,2]
[329332206,1718251860125,-150.0,0.00029977,2]
[329332207,1718251860138,-150.0,0.00029978,2]
[329332208,1718251860150,-1000.0,0.0002998,10]
[329332209,1718251860162,-150.0,0.00029984,2]
[329332210,1718251860224,-150.0,0.00029985,2]
[329332211,1718251860236,-1267.7471328,0.00029997,2]
[329332212,1718251860254,-225.27495819,0.00029998,2]
[329332213,1718251860267,-621.32112059,0.00029998,2]
[329332214,1718251860277,-164.46065267,0.00029998,2]
[329332215,1718251860291,-3882.8141,0.00029998,2]
[329332216,1718251860302,-155.0,0.00029998,2]
[329332217,1718251860329,-2369.69290444,0.00029998,2]
[329332218,1718251860340,-155.15394274,0.00029998,2]
[329332219,1718251860354,-1092.26936213,0.00029998,2]
[329332220,1718251860365,-492.36051672,0.00029998,2]
[329332221,1718251860376,-264.7127732,0.00029998,2]
[329332222,1718251860400,-266.03294333,0.00029998,2]
[329332223,1718251860424,-239.50790032,0.00029998,2]
[329332224,1718251860436,-206.34134894,0.00029998,2]
[329332225,1718251860446,-155.85297445,0.00029998,2]
[329332226,1718251860466,-416.81115081,0.00029998,2]
[329332227,1718251860485,-1416.38490909,0.00029998,2]
[329332228,1718251860497,-1282.82882044,0.00029998,2]
[329332229,1718251860513,-2384.03389456,0.00029998,2]
[329332230,1718251860528,-365.36443535,0.00029998,2]
[329332231,1718251860539,-1490.47614766,0.00029998,2]
[329332232,1718251860558,-201.51026321,0.00029998,2]
[329332233,1718251860574,-446.79515573,0.00029998,2]
[329332234,1718251860585,-1042.33917751,0.00029998,2]
[329332235,1718251860597,-1047.10843307,0.00029998,2]
[329332236,1718251860627,-155.64540202,0.00029998,2]
[329332237,1718251860648,-155.47095789,0.00029998,2]
[329332238,1718251860664,-326.11673876,0.00029998,2]
[329332239,1718251860674,-298.426164,0.00029998,2]
[329332240,1718251860685,-6810.74416787,0.00029998,2]
[329332241,1718251860696,-508.47342223,0.00029998,2]